bitfinex-derivatives/quotes_BTCF0:USTF0_20251111
["timestamp","ask_amount","ask_price","bid_price","bid_amount"]
[1762824909254,0.50471367,106660.0,106650.0,0.00257286]
[1762824910053,0.0938236,106620.0,106610.0,0.04961643]
[1762824910353,1.5270189,106620.0,106580.0,0.01368]
[1762824910552,0.14391367,106590.0,106580.0,0.05830267]
[1762824910849,0.8747917,106590.0,106580.0,0.05830267]
[1762824911354,0.8747917,106590.0,106580.0,0.15216157]
[1762824911557,0.1461117,106590.0,106580.0,0.15216157]
[1762824912250,0.1461117,106590.0,106580.0,0.51296157]
[1762824912847,0.1461117,106590.0,106580.0,0.05830267]
[1762824913048,0.00219803,106590.0,106580.0,0.15216147]
[1762824913245,0.1461117,106590.0,106580.0,0.51296147]
[1762824913948,0.00014043,106600.0,106590.0,0.13774]
[1762824914150,0.36792,106610.0,106590.0,0.73383267]
[1762824914449,0.14391367,106630.0,106620.0,0.1513936]
[1762824914650,0.00219803,106630.0,106620.0,0.51292627]
[1762824915449,0.00014043,106640.0,106630.0,0.1377048]
[1762824915649,0.50471367,106660.0,106650.0,0.1376872]
[1762824915847,0.1461117,106660.0,106650.0,0.49921987]
[1762824916048,0.00219803,106660.0,106650.0,0.49921987]
[1762824916247,0.1461117,106660.0,106650.0,0.49921987]
[1762824916856,0.08823345,106660.0,106650.0,0.04462267]
[1762824917053,0.08617585,106670.0,106660.0,0.1513585]
[1762824917248,0.08617585,106670.0,106660.0,0.51289117]
[1762824917556,0.00014043,106670.0,106660.0,0.74725117]
[1762824917954,0.44683542,106690.0,106670.0,0.1376697]
[1762824918148,0.08823345,106690.0,106680.0,0.15207357]
[1762824918646,0.08823345,106690.0,106680.0,0.05830267]
[1762824918844,0.08823345,106690.0,106680.0,0.15207357]
[1762824919552,0.08823345,106690.0,106680.0,0.15307357]
[1762824920453,0.08823345,106690.0,106680.0,0.42010267]
[1762824920657,0.44903345,106690.0,106680.0,0.05930267]
[1762824921045,0.44903345,106690.0,106680.0,0.05830267]
[1762824922057,0.45003345,106690.0,106680.0,0.05830267]
[1762824922458,0.53606887,106690.0,106680.0,0.03602267]
[1762824922657,0.09023345,106690.0,106680.0,0.15159357]
[1762824922855,0.09023345,106690.0,106680.0,0.51239357]
[1762824923055,0.09023345,106690.0,106680.0,0.74671357]
[1762824923658,0.09023345,106690.0,106680.0,0.41862267]
[1762824923858,0.09023345,106690.0,106680.0,0.05782267]
[1762824924066,0.45003345,106690.0,106680.0,0.05782267]
[1762824924262,0.42651982,106690.0,106680.0,0.05882267]
[1762824924565,0.60631734,106690.0,106680.0,0.05882267]
[1762824924765,0.51255524,106690.0,106680.0,0.05882267]
[1762824925059,0.51255524,106690.0,106680.0,0.05982267]
[1762824925252,0.00037472,106700.0,106690.0,0.04332]
[1762824925456,0.08641014,106700.0,106690.0,0.04551803]
[1762824925657,0.44721014,106700.0,106690.0,0.04551803]
[1762824926053,0.44721014,106700.0,106690.0,0.00219803]
[1762824926259,0.62699886,106700.0,106690.0,0.00219803]
[1762824926661,0.62699886,106700.0,106680.0,0.01468]
[1762824926864,0.99447294,106690.0,106680.0,0.00319803]
[1762824927065,0.99447294,106690.0,106680.0,0.00219803]
[1762824927266,0.99447294,106690.0,106670.0,0.00014043]
[1762824927469,0.62664174,106680.0,106670.0,0.00233846]
[1762824927766,0.62664174,106680.0,106660.0,0.01368]
[1762824927957,0.99449054,106670.0,106660.0,0.01368]
[1762824928454,0.99449054,106670.0,106640.0,0.01368]
[1762824928655,0.53287084,106650.0,106640.0,0.03739803]
[1762824929265,0.53287084,106650.0,106640.0,0.15300413]
[1762824929660,0.53287084,106650.0,106640.0,0.05919803]
[1762824929955,0.49909057,106650.0,106640.0,0.05919803]
[1762824930163,0.86689057,106650.0,106640.0,0.06019803]
[1762824930365,0.86689057,106650.0,106640.0,0.01687803]
[1762824931368,0.86689057,106650.0,106640.0,0.01887803]
[1762824932069,0.86689057,106650.0,106640.0,0.04039803]
[1762824932269,0.90067084,106650.0,106640.0,0.15600413]
[1762824932470,0.90067084,106650.0,106640.0,0.06219803]
[1762824933168,0.90067084,106650.0,106640.0,0.15600413]
[1762824933559,0.7286,106650.0,106640.0,0.15600413]
[1762824933764,0.53987084,106650.0,106640.0,0.15600413]
[1762824933968,0.53987084,106650.0,106640.0,0.51680413]
[1762824934269,0.53987084,106650.0,106640.0,0.15600413]
[1762824934675,0.90067084,106650.0,106640.0,0.15600413]
[1762824934970,0.53987084,106650.0,106640.0,0.15600413]
[1762824935367,0.90067084,106650.0,106640.0,0.06219803]
[1762824936073,0.62666814,106650.0,106640.0,0.06219803]
[1762824936273,0.53287084,106650.0,106640.0,0.06219803]
[1762824937170,0.3608,106650.0,106640.0,0.15600413]
[1762824937473,0.08617585,106660.0,106650.0,0.1371173]
[1762824937671,0.08617585,106660.0,106650.0,0.50011533]
[1762824939376,0.08617585,106660.0,106650.0,0.13931533]
[1762824939578,0.08617585,106660.0,106650.0,0.14031533]
[1762824940571,0.00014043,106660.0,106650.0,1.10111533]
[1762824940777,0.08603542,106670.0,106660.0,0.1501985]
[1762824940977,0.03108122,106670.0,106660.0,0.51319653]
[1762824941377,0.03108122,106670.0,106660.0,0.74755653]
[1762824941568,0.03108122,106670.0,106660.0,0.51319653]
[1762824941771,0.00014043,106680.0,106670.0,0.1370997]
[1762824942066,0.08617585,106680.0,106670.0,0.13929773]
[1762824942268,0.08603585,106680.0,106670.0,0.73445773]
[1762824943074,0.08703585,106680.0,106670.0,0.73445773]
[1762824943266,0.08803585,106680.0,106670.0,0.78397311]
[1762824943469,0.36799429,106700.0,106690.0,0.1370821]
[1762824943670,0.45402971,106700.0,106690.0,0.50008013]
[1762824944076,0.54778301,106700.0,106690.0,0.13928013]
[1762824944272,0.45402971,106700.0,106690.0,0.13928013]
[1762824944576,0.54778301,106700.0,106690.0,0.13928013]
[1762824944980,0.00023429,106700.0,106690.0,0.50008013]
[1762824945472,0.08612684,106710.0,106700.0,0.1501633]
[1762824945678,0.08612684,106710.0,106700.0,0.51316133]
[1762824946377,0.08612684,106710.0,106700.0,0.74744133]
[1762824946578,9.142e-05,106710.0,106700.0,0.74744133]
[1762824946780,0.08603542,106720.0,106710.0,0.1370646]
[1762824947072,0.08603542,106720.0,106710.0,0.13926263]
[1762824947273,0.17977122,106720.0,106710.0,0.13926263]
[1762824947475,0.17977122,106720.0,106710.0,0.04551803]
[1762824947687,0.3608,106730.0,106720.0,0.1501458]
[1762824947980,0.8222038,106740.0,106730.0,0.04332]
[1762824948182,0.8222038,106740.0,106730.0,0.04551803]
[1762824948372,0.8222038,106740.0,106730.0,0.13924503]
[1762824948573,0.72848,106740.0,106730.0,0.13924503]
[1762824948981,0.45371542,106740.0,106730.0,0.13924503]
[1762824949180,0.45671542,106740.0,106730.0,0.13924503]
[1762824949480,0.45971542,106740.0,106730.0,0.13924503]
[1762824949681,0.09203542,106740.0,106730.0,0.13924503]
[1762824951073,0.09203542,106740.0,106730.0,0.50004503]
[1762824951477,0.62958904,106740.0,106730.0,0.13924503]
[1762824951683,0.62658904,106740.0,106730.0,0.04651803]
[1762824951874,0.62658904,106740.0,106730.0,0.00419803]
[1762824952382,0.99414904,106740.0,106730.0,0.00419803]
[1762824952681,0.99414904,106740.0,106730.0,0.001]
[1762824952880,0.0937358,106720.0,106710.0,0.00014043]
[1762824953078,0.90809122,106720.0,106710.0,0.00014043]
[1762824953283,0.99412664,106720.0,106710.0,0.00014043]
[1762824954186,1.35492664,106720.0,106710.0,0.00014043]
[1762824954484,0.0937446,106710.0,106700.0,0.01309]
[1762824954676,0.62661544,106710.0,106700.0,0.01309]
[1762824954872,0.0937545,106700.0,106680.0,0.01318004]
[1762824955081,1.26115084,106690.0,106680.0,0.01537807]
[1762824955379,1.35491304,106690.0,106680.0,0.01537807]
[1762824957388,1.35491304,106690.0,106680.0,0.00109004]
[1762824957786,1.35491304,106690.0,106680.0,0.00209004]
[1762824957981,1.26115084,106690.0,106680.0,0.00209004]
[1762824958283,1.26115084,106690.0,106680.0,0.01771807]
[1762824958787,1.35491304,106690.0,106680.0,0.01771807]
[1762824959178,1.35491304,106690.0,106680.0,0.00428807]
[1762824960491,0.093771,106680.0,106670.0,0.00014043]
[1762824960781,0.0937825,106670.0,106660.0,0.01343]
[1762824961085,0.0937825,106670.0,106660.0,0.15480663]
[1762824961086,0.36748,106670.0,106660.0,0.15480663]
[1762824961279,0.36748,106680.0,106670.0,0.1391698]
[1762824961479,0.72837004,106680.0,106670.0,0.04758803]
[1762824961684,0.72837004,106680.0,106670.0,0.04958803]
[1762824961882,0.90044088,106680.0,106670.0,0.04958803]
[1762824962078,0.90044088,106680.0,106670.0,0.14336783]
[1762824963383,0.72837004,106680.0,106670.0,0.14336783]
[1762824963584,0.45360546,106680.0,106670.0,0.14536783]
[1762824963891,0.45360546,106680.0,106670.0,0.50616783]
[1762824964090,0.08612546,106680.0,106670.0,0.14536783]
[1762824964277,9.004e-05,106680.0,106670.0,0.74052783]
[1762824964475,9.004e-05,106680.0,106670.0,1.34052783]
[1762824964689,0.36094043,106690.0,106680.0,0.05882]
[1762824964886,0.00014043,106690.0,106680.0,0.51558903]
[1762824965081,0.08617585,106690.0,106680.0,0.06101803]
[1762824965278,0.54073805,106690.0,106680.0,0.01562803]
[1762824965486,0.99425347,106690.0,106680.0,0.01343]
[1762824965682,0.99425347,106690.0,106670.0,0.004]
[1762824965683,0.093771,106680.0,106670.0,0.004]
[1762824965990,0.54060642,106680.0,106670.0,0.004]
[1762824966692,0.0937798,106670.0,106660.0,0.00014043]
[1762824966889,0.72828,106670.0,106660.0,0.06115846]
[1762824967196,0.45351542,106670.0,106660.0,0.06115846]
[1762824967387,0.45351542,106670.0,106660.0,0.15494696]
[1762824967581,0.81431542,106670.0,106660.0,0.15494696]
[1762824967787,0.81431542,106670.0,106660.0,0.06115846]
[1762824968084,0.90809512,106670.0,106660.0,0.03833846]
[1762824968282,0.90809512,106670.0,106660.0,0.01576846]
[1762824968485,0.90809512,106670.0,106660.0,0.00014043]
[1762824968693,0.99413054,106670.0,106660.0,0.00014043]
[1762824969284,0.0937922,106660.0,106640.0,0.01399]
[1762824969498,1.35494814,106650.0,106640.0,0.01399]
[1762824969681,1.35490814,106650.0,106640.0,0.01399]
[1762824970384,1.26111084,106650.0,106640.0,0.01399]
[1762824970589,1.26111084,106650.0,106630.0,0.00014043]
[1762824970590,1.35490814,106650.0,106630.0,0.00014043]
[1762824970797,0.44683542,106640.0,106630.0,0.00233846]
[1762824972898,0.62667694,106640.0,106630.0,0.00214043]
[1762824973107,0.62667694,106640.0,106630.0,0.00514043]
[1762824973390,0.44683542,106640.0,106630.0,0.00514043]
[1762824973694,0.54064152,106640.0,106630.0,0.00514043]
[1762824974196,0.54364152,106640.0,106630.0,0.00214043]
[1762824974386,0.54364152,106640.0,106630.0,0.00014043]
[1762824974588,0.54664152,106640.0,106630.0,0.00014043]
[1762824974798,0.63267694,106640.0,106630.0,0.00014043]
[1762824975794,0.62967694,106640.0,106630.0,0.00014043]
[1762824976197,0.63267694,106640.0,106630.0,0.00014043]
[1762824976393,0.0938237,106620.0,106610.0,0.00011707]
[1762824976593,0.90813912,106620.0,106610.0,0.00011707]
[1762824976897,0.96648909,106620.0,106610.0,0.00011707]
[1762824977286,0.87266539,106620.0,106610.0,0.0023151]
[1762824977498,0.96648909,106620.0,106610.0,0.0023151]
[1762824977691,0.96648909,106620.0,106610.0,0.00011707]
[1762824977997,1.32728909,106620.0,106610.0,0.00011707]
[1762824978195,0.0938325,106610.0,106600.0,0.00037494]
[1762824978391,0.59901789,106610.0,106600.0,0.00037494]
[1762824978695,0.41123273,106610.0,106600.0,0.00037494]
[1762824978894,0.41123273,106610.0,106600.0,0.00257297]
[1762824979292,0.41131937,106610.0,106600.0,0.00257297]
[1762824979689,0.41131937,106610.0,106600.0,0.00357297]
[1762824979998,0.31748687,106610.0,106600.0,0.15507427]
[1762824980193,0.31748687,106610.0,106600.0,0.06123297]
[1762824980392,0.68500687,106610.0,106600.0,0.15507427]
[1762824980602,0.51199203,106610.0,106600.0,0.15507427]
[1762824980999,0.00014043,106630.0,106620.0,0.1514837]
[1762824981296,0.36766043,106630.0,106620.0,0.42065803]
[1762824981602,0.87284582,106630.0,106620.0,0.05985803]
[1762824981790,0.96666072,106630.0,106620.0,0.05985803]
[1762824981991,0.96666072,106630.0,106620.0,0.01519803]
[1762824982199,0.0938237,106620.0,106610.0,0.3608]
[1762824982401,0.59900909,106620.0,106610.0,0.00219803]
[1762824982701,0.36294043,106630.0,106620.0,0.05766]
[1762824982895,0.87484582,106630.0,106620.0,0.15368173]
[1762824983700,0.36966043,106630.0,106620.0,0.51448173]
[1762824984400,0.36866043,106630.0,106620.0,0.51448173]
[1762824984902,0.36766043,106630.0,106620.0,0.51448173]
[1762824985703,0.36766043,106630.0,106620.0,0.51548173]
[1762824985896,0.4545846,106670.0,106650.0,0.1166873]
[1762824986101,0.36752,106660.0,106650.0,0.00219803]
[1762824986291,0.8221085,106660.0,106650.0,0.00219803]
[1762824987103,0.96649389,106660.0,106650.0,0.00219803]
[1762824987597,0.0937973,106650.0,106640.0,0.05780043]
[1762824987801,0.59898269,106650.0,106640.0,0.01533846]
[1762824988189,0.3608,106650.0,106640.0,0.05999846]
[1762824988393,0.14738539,106660.0,106650.0,0.04466]
[1762824988595,0.96945389,106660.0,106650.0,0.00219803]
[1762824988795,0.97245389,106660.0,106650.0,0.00219803]
[1762824988995,0.99292489,106660.0,106650.0,0.00219803]
[1762824989294,0.0937974,106650.0,106640.0,0.01314043]
[1762824989496,0.59898279,106650.0,106640.0,0.01314043]
[1762824989794,0.59898279,106650.0,106640.0,0.00014043]
[1762824989993,0.50518539,106650.0,106640.0,0.05999846]
[1762824990395,0.59898279,106650.0,106640.0,0.05999846]
[1762824990701,0.60098279,106650.0,106640.0,0.05999846]
[1762824991704,0.60298279,106650.0,106640.0,0.05999846]
[1762824991905,0.87666539,106650.0,106640.0,0.05999846]
[1762824992404,0.97046279,106650.0,106640.0,0.05999846]
[1762824992801,0.97046279,106650.0,106640.0,0.01533846]
[1762824993192,0.97046279,106650.0,106640.0,0.05999846]
[1762824993193,0.87666539,106650.0,106640.0,0.05999846]
[1762824993399,0.97046279,106650.0,106640.0,0.01533846]
[1762824993601,0.99095866,106650.0,106640.0,0.01533846]
[1762824994194,0.99095866,106650.0,106640.0,0.01314043]
[1762824995207,0.89716126,106650.0,106640.0,0.05999846]
[1762824995404,0.52968126,106650.0,106640.0,0.05999846]
[1762824995607,0.99091866,106650.0,106640.0,0.05999846]
[1762824995905,0.99091866,106650.0,106640.0,0.01533846]
[1762824996305,0.0938326,106610.0,106600.0,0.01323451]
[1762824996507,0.9869898,106610.0,106600.0,0.01323451]
[1762824996899,0.0938414,106600.0,106590.0,0.0249]
[1762824997099,0.61956237,106600.0,106590.0,0.02709803]
[1762824997302,0.61956237,106600.0,106590.0,0.0249]
[1762824997901,0.98700237,106600.0,106590.0,0.0249]
[1762824998499,0.0938502,106590.0,106580.0,0.00014043]
[1762824998706,0.0938591,106580.0,106570.0,0.00495965]
[1762824998903,0.98702007,106580.0,106570.0,0.00715768]
[1762824999110,0.96648449,106580.0,106570.0,0.00715768]
[1762824999610,0.98700345,106580.0,106570.0,0.00715768]
[1762824999807,0.89314435,106580.0,106570.0,0.00715768]
[1762825000006,0.89314435,106580.0,106570.0,0.02892768]
[1762825000206,0.87262539,106580.0,106570.0,0.05181768]
[1762825000401,0.14438539,106580.0,106570.0,0.14568558]
[1762825000606,0.87266539,106580.0,106570.0,0.05181768]
[1762825001506,0.3608,106580.0,106570.0,0.14668558]
[1762825001708,0.14452582,106590.0,106580.0,0.1515191]
[1762825001902,0.87280582,106590.0,106580.0,0.05985803]
[1762825002209,0.96665612,106590.0,106580.0,0.01519803]
[1762825002910,0.96765612,106590.0,106580.0,0.01519803]
[1762825003507,0.093859,106580.0,106570.0,0.00595965]
[1762825003808,0.61949922,106580.0,106560.0,0.00014043]
[1762825004005,0.0938942,106540.0,106530.0,8.739e-05]
[1762825004205,0.87266539,106540.0,106530.0,0.00228542]
[1762825004508,0.87266539,106540.0,106530.0,0.02405542]
[1762825005199,0.87266539,106540.0,106530.0,0.04694542]
[1762825005405,0.14452582,106550.0,106540.0,0.05766]
[1762825005602,0.51204582,106550.0,106540.0,0.05985803]
[1762825006406,0.36766043,106550.0,106540.0,0.05985803]
[1762825006612,0.60593122,106550.0,106540.0,0.05985803]
[1762825006813,0.96673122,106550.0,106540.0,0.06085803]
[1762825007413,0.96673122,106550.0,106540.0,0.01619803]
[1762825009518,0.96673122,106550.0,106540.0,0.001]
[1762825010313,0.82234583,106550.0,106540.0,0.01447]
[1762825010610,0.96673122,106550.0,106540.0,0.01666803]
[1762825010814,0.96673082,106550.0,106540.0,0.00319803]
[1762825011313,0.87284582,106550.0,106540.0,0.00319803]
[1762825011511,0.96673082,106550.0,106540.0,0.00319803]
[1762825012511,0.82234543,106550.0,106540.0,0.00319803]
[1762825012814,0.96673082,106550.0,106540.0,0.01666803]
[1762825014304,0.96673082,106550.0,106540.0,0.00319803]
[1762825014505,0.96673092,106550.0,106540.0,0.01666803]
[1762825014710,0.87284582,106550.0,106540.0,0.01666803]
[1762825015024,0.87296582,106550.0,106540.0,0.01666803]
[1762825015318,0.96685092,106550.0,106540.0,0.01666803]
[1762825015517,0.87296582,106550.0,106540.0,0.01666803]
[1762825015818,0.96685082,106550.0,106540.0,0.01666803]
[1762825016814,0.50532582,106550.0,106540.0,0.15620183]
[1762825017021,0.87296582,106550.0,106540.0,0.06230803]
[1762825017322,0.96685082,106550.0,106540.0,0.01666803]
[1762825018307,0.50532582,106550.0,106540.0,0.06230803]
[1762825018515,0.50532582,106550.0,106540.0,0.15620183]
[1762825018819,0.87300582,106550.0,106540.0,0.06230803]
[1762825019018,0.96689082,106550.0,106540.0,0.01666803]
[1762825019609,0.96689082,106550.0,106540.0,0.01447]
[1762825020112,0.96689082,106550.0,106540.0,0.001]
[1762825020620,0.96689082,106550.0,106540.0,0.01424]
[1762825020820,0.96689082,106550.0,106540.0,0.001]
[1762825021322,0.96689082,106550.0,106530.0,8.739e-05]
[1762825021323,0.0938938,106540.0,106530.0,8.739e-05]
[1762825021520,0.59907919,106540.0,106530.0,8.739e-05]
[1762825021714,0.3608,106540.0,106530.0,0.04792542]
[1762825021920,0.96675919,106540.0,106530.0,0.00228542]
[1762825022114,0.96675919,106540.0,106520.0,9.362e-05]
[1762825022316,0.45482573,106550.0,106540.0,0.05888]
[1762825022317,0.36094043,106550.0,106540.0,0.05888]
[1762825022511,0.73072,106570.0,106560.0,0.1527562]
[1762825022713,0.3608,106590.0,106570.0,0.04564]
[1762825022927,0.87546539,106580.0,106540.0,0.37404]
[1762825023216,0.50518539,106560.0,106540.0,0.06107803]
[1762825023412,0.37068,106550.0,106540.0,0.51577183]
[1762825023613,0.37068,106550.0,106540.0,0.15497183]
[1762825025724,0.003,106580.0,106570.0,0.00014043]
[1762825026021,0.6020942,106580.0,106570.0,0.00233846]
[1762825026216,0.62257648,106580.0,106570.0,0.00233846]
[1762825026517,0.61957648,106580.0,106570.0,0.00014043]
[1762825026918,0.0938674,106570.0,106540.0,0.37404]
[1762825027111,0.8758756,106560.0,106540.0,0.37623803]
[1762825027311,0.99023548,106560.0,106540.0,0.37623803]
[1762825027512,0.14438539,106550.0,106540.0,0.03859803]
[1762825027920,0.14438539,106550.0,106540.0,0.13249183]
[1762825028322,0.87601603,106560.0,106540.0,0.13249183]
[1762825028520,0.75213107,106560.0,106540.0,0.13249183]
[1762825028722,0.89651646,106560.0,106540.0,0.13349183]
[1762825029520,0.99039286,106560.0,106540.0,0.03959803]
[1762825029821,0.52787646,106560.0,106540.0,0.49429183]
[1762825030023,0.37056,106550.0,106540.0,0.51677183]
[1762825030226,0.37056,106550.0,106540.0,0.15597183]
[1762825030522,0.37056,106550.0,106540.0,0.51677183]
[1762825030724,0.37056,106550.0,106540.0,0.51577183]
[1762825030920,0.37056,106550.0,106540.0,0.42187803]
[1762825031114,0.0938938,106540.0,106530.0,0.00014043]
[1762825031418,0.0939153,106520.0,106500.0,0.01347473]
[1762825031622,0.8758756,106510.0,106500.0,0.01567276]
[1762825031921,0.99045715,106510.0,106500.0,0.01567276]
[1762825032222,0.9697959,106510.0,106500.0,0.01567276]
[1762825032421,0.8758756,106510.0,106500.0,0.01567276]
[1762825032619,0.37069021,106510.0,106500.0,0.15524186]
[1762825033213,0.99046246,106510.0,106500.0,0.01567276]
[1762825033409,0.99046246,106510.0,106500.0,0.00243276]
[1762825033717,1.35126246,106510.0,106500.0,0.00243276]
[1762825033918,1.35126246,106510.0,106500.0,0.00023473]
[1762825034417,1.35226246,106510.0,106500.0,0.00023473]
[1762825034621,1.35221225,106510.0,106500.0,0.00023473]
[1762825035218,0.0939291,106500.0,106490.0,0.00017029]
[1762825035415,0.61983126,106500.0,106490.0,0.00017029]
[1762825036022,0.61983126,106500.0,106460.0,0.01324]
[1762825036023,0.0939379,106490.0,106460.0,0.01324]
[1762825036322,0.50518539,106470.0,106460.0,0.01543803]
[1762825036922,0.62763811,106470.0,106460.0,0.01543803]
[1762825037111,0.62763811,106470.0,106460.0,0.00219803]
[1762825037314,0.62763811,106470.0,106450.0,0.00023484]
[1762825037315,0.62753584,106470.0,106450.0,0.00023484]
[1762825037626,0.81781868,106460.0,106450.0,0.00243287]
[1762825037825,0.81774752,106460.0,106450.0,0.00243287]
[1762825038221,0.36090066,106460.0,106450.0,0.14204657]
[1762825038415,0.81796818,106460.0,106450.0,0.04807287]
[1762825038615,0.81796818,106460.0,106450.0,0.00243287]
[1762825038821,0.44728818,106460.0,106450.0,0.14204657]
[1762825039122,0.81900818,106460.0,106450.0,0.04807287]
[1762825039324,0.81900818,106460.0,106450.0,0.00243287]
[1762825040018,0.91297308,106460.0,106450.0,0.00023484]
[1762825040419,0.81800818,106460.0,106450.0,0.00023484]
[1762825040624,0.81800818,106460.0,106450.0,0.00723484]
[1762825040925,0.91197258,106460.0,106450.0,0.00723484]
[1762825041127,0.81800818,106460.0,106450.0,0.00723484]
[1762825041324,0.81800818,106460.0,106450.0,0.00943287]
[1762825041518,0.81796818,106460.0,106450.0,0.14767607]
[1762825041714,0.73158066,106460.0,106450.0,0.14767607]
[1762825042118,0.44728818,106460.0,106450.0,0.14767607]
[1762825042420,0.91185258,106460.0,106450.0,0.00723484]
[1762825042615,0.91185258,106460.0,106450.0,0.00943287]
[1762825042823,0.81788818,106460.0,106450.0,0.00943287]
[1762825043029,0.91185258,106460.0,106450.0,0.00943287]
[1762825043414,0.81788818,106460.0,106450.0,0.00943287]
[1762825043619,0.91185258,106460.0,106450.0,0.00943287]
[1762825044415,0.91173258,106460.0,106450.0,0.00943287]
[1762825045020,0.99801944,106460.0,106450.0,0.00723484]
[1762825045318,0.99801944,106460.0,106420.0,0.01324]
[1762825045319,0.0939908,106430.0,106420.0,0.05751]
[1762825045525,0.91167648,106430.0,106420.0,0.01543803]
[1762825045823,1.17848568,106430.0,106420.0,0.03754803]
[1762825046024,0.0940085,106410.0,106400.0,0.36110974]
[1762825046223,0.0940085,106410.0,106360.0,0.06212538]
[1762825046224,0.0940305,106390.0,106360.0,0.01261]
[1762825046428,0.00219803,106370.0,106360.0,0.05761267]
[1762825046822,0.08867535,106370.0,106360.0,0.05761267]
[1762825047124,0.00228783,106370.0,106360.0,0.15166537]
[1762825047340,0.00014043,106390.0,106380.0,0.150915]
[1762825047628,0.09272598,106390.0,106380.0,0.05761267]
[1762825048025,0.38057846,106390.0,106380.0,0.05761267]
[1762825048218,0.82376598,106390.0,106380.0,0.05761267]
[1762825048418,0.91779218,106390.0,106380.0,0.01334267]
[1762825048618,0.9101535,106390.0,106360.0,0.05688]
[1762825048819,0.54122252,106380.0,106370.0,0.00073267]
[1762825049019,0.90422055,106380.0,106370.0,0.00073267]
[1762825049425,0.81018555,106380.0,106370.0,0.00073267]
[1762825049725,0.44938555,106380.0,106370.0,0.00073267]
[1762825049925,0.44938555,106380.0,106370.0,0.04500267]
[1762825050331,0.62980807,106380.0,106370.0,0.00373267]
[1762825050725,0.36299803,106380.0,106370.0,0.02584267]
[1762825051030,0.54342055,106380.0,106370.0,0.04800267]
[1762825051233,0.54342055,106380.0,106370.0,0.00673267]
[1762825051429,0.62980807,106380.0,106370.0,0.00673267]
[1762825051625,0.53577307,106380.0,106370.0,0.00673267]
[1762825051827,0.44938555,106380.0,106370.0,0.05100267]
[1762825052127,0.08858555,106380.0,106370.0,0.50584657]
[1762825052333,0.44938555,106380.0,106370.0,0.05100267]
[1762825052928,0.54342055,106380.0,106370.0,0.05100267]
[1762825053128,0.54342055,106380.0,106370.0,0.00673267]
[1762825053330,0.62980807,106380.0,106370.0,0.00673267]
[1762825054024,0.53577307,106380.0,106370.0,0.00673267]
[1762825054224,0.44938555,106380.0,106370.0,0.02884267]
[1762825054434,0.08858555,106380.0,106370.0,0.02884267]
[1762825054735,0.44938555,106380.0,106370.0,0.05100267]
[1762825054928,0.08858555,106380.0,106370.0,0.05100267]
[1762825055234,0.00219803,106380.0,106370.0,0.05100267]
[1762825055432,0.18262055,106380.0,106370.0,0.05100267]
[1762825056132,0.44938555,106380.0,106370.0,0.05100267]
[1762825056332,0.54342055,106380.0,106370.0,0.05100267]
[1762825057328,0.54342055,106380.0,106370.0,0.14504647]
[1762825057329,0.00219803,106380.0,106370.0,0.14504647]
[1762825057525,0.00219803,106380.0,106370.0,0.00673267]
[1762825057723,0.00219803,106380.0,106370.0,0.05100267]
[1762825058134,0.00219803,106380.0,106370.0,0.50584647]
[1762825058530,0.00219803,106380.0,106370.0,0.41180267]
[1762825059034,0.00014043,106390.0,106380.0,0.150915]
[1762825059226,0.00014043,106390.0,106380.0,0.74744767]
[1762825059428,0.3608,106420.0,106410.0,0.04427]
[1762825059737,0.00219803,106420.0,106410.0,0.49981117]
[1762825060324,0.3608,106440.0,106430.0,0.04427]
[1762825060524,0.3608,106440.0,106430.0,0.04500267]
[1762825060525,0.45698003,106440.0,106430.0,0.04500267]
[1762825060727,0.00219803,106440.0,106430.0,0.13899347]
[1762825060929,0.00219803,106440.0,106430.0,0.49979347]
[1762825061129,0.00219803,106440.0,106430.0,0.04500267]
[1762825061130,0.54336755,106440.0,106430.0,0.04500267]
[1762825061329,0.54336755,106440.0,106430.0,0.00073267]
[1762825061832,0.0939908,106430.0,106420.0,0.00014043]
[1762825062039,0.91753635,106430.0,106420.0,0.00014043]
[1762825062437,0.82354555,106430.0,106420.0,0.0577531]
[1762825062647,0.00219803,106430.0,106420.0,0.5125528]
[1762825063335,0.00219803,106430.0,106420.0,0.4185531]
[1762825063538,0.00219803,106430.0,106420.0,0.4215531]
[1762825064339,0.00219803,106430.0,106420.0,0.5155528]
[1762825066533,0.82140795,106450.0,106440.0,0.05688]
[1762825066730,0.91757918,106450.0,106440.0,0.05761267]
[1762825067636,0.91757918,106450.0,106440.0,0.01334267]
[1762825068344,0.82560598,106450.0,106440.0,0.05761267]
[1762825068547,0.91957918,106450.0,106440.0,0.05761267]
[1762825068836,0.82560598,106450.0,106440.0,0.05761267]
[1762825069037,0.82560598,106450.0,106440.0,0.15159467]
[1762825069545,0.82560598,106450.0,106440.0,0.05761267]
[1762825069848,0.91957918,106450.0,106440.0,0.05726267]
[1762825070047,0.82560598,106450.0,106440.0,0.15124467]
[1762825070447,0.00433846,106450.0,106440.0,0.15124467]
[1762825070640,0.00433846,106450.0,106440.0,0.51204467]
[1762825071639,0.00433846,106450.0,106440.0,0.15124467]
[1762825071841,0.00233846,106450.0,106440.0,0.51204467]
[1762825072246,0.00014043,106450.0,106440.0,0.41806267]
[1762825072448,0.00014043,106450.0,106440.0,0.51204467]
[1762825073939,0.37348,106470.0,106460.0,0.1512544]
[1762825074141,0.44718752,106510.0,106500.0,0.05729]
[1762825074442,0.20316564,106510.0,106500.0,0.05802267]
[1762825074638,0.54330585,106510.0,106500.0,0.05802267]
[1762825074851,0.54330585,106510.0,106500.0,0.01408267]
[1762825075337,0.44938555,106510.0,106500.0,0.05727267]
[1762825075740,0.45138555,106510.0,106500.0,0.05727267]
[1762825075942,0.45138555,106510.0,106500.0,0.51200177]
[1762825075943,0.00419803,106510.0,106500.0,0.51200177]
[1762825076146,0.00419803,106510.0,106500.0,0.41807267]
[1762825076449,0.00419803,106510.0,106500.0,0.51200177]
[1762825077451,0.00619803,106510.0,106500.0,0.51200177]
[1762825077844,0.00219803,106510.0,106500.0,0.15120177]
[1762825080145,0.00219803,106510.0,106500.0,0.51200177]
[1762825080854,0.54330585,106510.0,106500.0,0.01408267]
[1762825081344,0.36299803,106510.0,106500.0,0.05816267]
[1762825081549,0.54330585,106510.0,106500.0,0.05816267]
[1762825081751,0.54330585,106510.0,106500.0,0.01508267]
[1762825082047,0.54330585,106510.0,106500.0,0.01608267]
[1762825082248,0.54330585,106510.0,106500.0,0.01508267]
[1762825082451,0.45691833,106510.0,106500.0,0.01508267]
[1762825082646,0.54330585,106510.0,106500.0,0.01508267]
[1762825082840,0.62969337,106510.0,106500.0,0.001]
[1762825083043,0.0939291,106500.0,106490.0,0.00014043]
[1762825083248,1.00322217,106500.0,106490.0,0.0008731]
[1762825083643,1.00322217,106500.0,106490.0,0.00014043]
[1762825084147,0.18032992,106490.0,106460.0,0.1073106]
[1762825084346,0.37591803,106480.0,106470.0,0.4978355]
[1762825084543,0.46230555,106480.0,106470.0,0.49856817]
[1762825084855,0.91705225,106480.0,106470.0,0.04381267]
[1762825085155,0.82310555,106480.0,106470.0,0.04381267]
[1762825085446,0.91705225,106480.0,106470.0,0.04381267]